fUST/lending_fUST_20251012
["ID","MTS","AMOUNT","RATE_DAILY","PERIOD"]
[390988276,1760273559524,5000.0,0.00017,10]
[390988277,1760273559682,500.0,0.00030264,60]
[390988278,1760273559948,500.0,0.00030264,60]
[390988279,1760273560215,500.0,0.00030264,60]
[390988280,1760273560447,646.0,0.00030264,60]
[390988281,1760273566052,500.0,0.00030264,60]
[390988282,1760273566280,500.0,0.00030264,60]
[390988283,1760273566533,500.0,0.00030264,60]
[390988284,1760273566772,430.29,0.00030264,60]
[390988285,1760273569190,500.0,0.00030264,60]
[390988286,1760273575671,500.0,0.00030264,60]
[390988287,1760273575974,321.38,0.00030264,60]
[390988288,1760273576851,500.0,0.00030264,60]
[390988289,1760273582913,5000.0,0.00017,10]
[390988290,1760273584929,500.75698845,0.00030264,60]
[390988291,1760273587870,500.0,0.00030264,60]
[390988292,1760273588116,500.0,0.00030264,60]
[390988293,1760273588399,500.0,0.00030264,60]
[390988295,1760273593200,500.0,0.00030264,60]
[390988296,1760273593438,500.0,0.00030264,60]
[390988297,1760273593749,500.0,0.00030264,60]
[390988298,1760273593989,500.0,0.00030264,60]
[390988299,1760273594227,500.0,0.00030264,60]
[390988300,1760273594985,235.02311426,0.00030264,60]
[390988301,1760273597785,618.97,0.00030264,60]
[390988302,1760273601418,500.0,0.00030257,60]
[390988303,1760273602013,500.0,0.00030257,60]
[390988304,1760273602271,500.0,0.00030257,60]
[390988305,1760273602501,500.0,0.00030257,60]
[390988306,1760273602727,500.0,0.00030257,60]
[390988307,1760273602950,500.0,0.00030257,60]
[390988308,1760273603177,500.0,0.00030257,60]
[390988309,1760273603400,500.0,0.00030257,60]
[390988310,1760273603706,500.0,0.00030257,60]
[390988311,1760273604000,240.98,0.00030257,60]
[390988312,1760273605176,500.0,0.00030257,60]
[390988313,1760273605441,500.0,0.00030257,60]
[390988314,1760273606201,5000.0,0.00017,10]
[390988315,1760273608572,500.0,0.00030257,60]
[390988316,1760273611594,500.0,0.00030257,60]
[390988317,1760273611687,500.0,0.00030257,60]
[390988318,1760273611844,500.0,0.00030257,60]
[390988319,1760273611914,500.0,0.00030257,60]
[390988320,1760273612108,500.0,0.00030257,60]
[390988321,1760273612143,500.0,0.00030257,60]
[390988322,1760273612332,329.3,0.00030257,60]
[390988323,1760273612392,500.0,0.00030257,60]
[390988324,1760273612676,233.66017789,0.00030257,60]
[390988325,1760273613336,636.74,0.00030257,60]
[390988326,1760273615148,305.24923335,0.00030257,60]
[390988327,1760273621899,500.0,0.00030257,60]
[390988328,1760273622164,500.0,0.00030257,60]
[390988329,1760273622384,500.0,0.00030257,60]
[390988330,1760273622623,320.02,0.00030257,60]
[390988331,1760273623118,500.0,0.00030257,60]
[390988332,1760273623395,286.83,0.00030257,60]
[390988333,1760273624804,500.0,0.00030257,60]
[390988334,1760273625162,500.0,0.00030257,60]
[390988335,1760273628815,500.0,0.00030257,60]
[390988336,1760273629380,5000.0,0.00017,10]
[390988337,1760273631946,500.0,0.00030257,60]
[390988338,1760273632172,500.0,0.00030257,60]
[390988339,1760273632594,500.0,0.00030257,60]
[390988340,1760273632836,500.0,0.00030257,60]
[390988341,1760273633006,500.0,0.00030257,60]
[390988342,1760273633075,500.0,0.00030257,60]
[390988343,1760273633281,500.0,0.00030257,60]
[390988344,1760273633344,500.0,0.00030257,60]
[390988345,1760273633531,500.0,0.00030257,60]
[390988346,1760273633607,500.0,0.00030257,60]
[390988347,1760273633814,430.29,0.00030257,60]
[390988348,1760273633876,500.0,0.00030257,60]
[390988349,1760273634124,500.0,0.00030257,60]
[390988350,1760273634716,500.0,0.00030257,60]
[390988351,1760273634960,500.0,0.00030257,60]
[390988352,1760273635466,158.12,0.00030257,60]
[390988353,1760273639250,500.0,0.00030257,60]
[390988354,1760273639501,526.64,0.00030257,60]
[390988355,1760273642054,500.0,0.00030257,60]
[390988356,1760273642293,500.0,0.00030257,60]
[390988357,1760273642596,500.0,0.00030257,60]
[390988358,1760273642853,320.05,0.00030257,60]
[390988359,1760273644899,500.0,0.00030257,60]
[390988360,1760273645000,500.0,0.00030257,60]
[390988361,1760273645273,221.8,0.00030257,60]
[390988362,1760273645958,631.69,0.00030257,60]
[390988363,1760273648922,500.0,0.00030257,60]
[390988364,1760273649234,500.0,0.00030257,60]
[390988365,1760273649476,500.0,0.00030257,60]
[390988366,1760273649801,500.0,0.00030257,60]
[390988367,1760273650062,500.0,0.00030257,60]
[390988368,1760273650337,500.0,0.00030257,60]
[390988369,1760273650992,500.0,0.00030257,60]
[390988370,1760273651235,500.0,0.00030257,60]
[390988371,1760273651481,500.0,0.00030257,60]
[390988372,1760273651711,500.0,0.00030257,60]
[390988373,1760273651956,500.0,0.00030257,60]
[390988374,1760273652222,500.0,0.00030257,60]
[390988375,1760273652272,5000.0,0.00017,10]
[390988376,1760273652498,500.0,0.00030257,60]
[390988377,1760273652746,500.0,0.00030257,60]
[390988378,1760273652967,578.5737445,0.00030257,60]
[390988379,1760273655578,500.0,0.00030257,60]
[390988380,1760273655802,500.0,0.00030257,60]
[390988381,1760273662634,500.0,0.00030257,60]
[390988382,1760273666387,500.0,0.00030257,60]
[390988383,1760273666629,500.0,0.00030257,60]
[390988384,1760273666871,456.14,0.00030257,60]
[390988385,1760273668776,500.0,0.00030257,60]
[390988386,1760273669030,230.7,0.00030257,60]
[390988387,1760273671599,500.0,0.00030257,60]
[390988388,1760273674979,5000.0,0.00017,10]
[390988389,1760273677091,500.0,0.00030257,60]
[390988390,1760273683090,500.0,0.00030257,60]
[390988391,1760273683313,500.0,0.00030257,60]
[390988392,1760273683537,500.0,0.00030257,60]
[390988393,1760273683767,500.0,0.00030257,60]
[390988394,1760273684025,500.0,0.00030257,60]
[390988395,1760273684259,500.0,0.00030257,60]
[390988396,1760273684474,500.0,0.00030257,60]
[390988397,1760273684573,500.0,0.00030257,60]
[390988398,1760273684806,500.0,0.00030257,60]
[390988399,1760273685035,573.53,0.00030257,60]
[390988400,1760273685068,500.0,0.00030257,60]
[390988401,1760273685371,500.0,0.00030257,60]
[390988402,1760273685602,500.0,0.00030257,60]
[390988403,1760273685900,500.0,0.00030257,60]
[390988404,1760273686147,617.34439955,0.00030257,60]
[390988405,1760273688406,500.0,0.00030257,60]
[390988406,1760273688636,500.0,0.00030257,60]
[390988407,1760273688922,171.56,0.00030257,60]
[390988408,1760273689672,485.00778759,0.00030257,60]
[390988409,1760273689754,500.0,0.00030257,60]
[390988410,1760273690002,500.0,0.00030257,60]
[390988411,1760273690291,386.79,0.00030257,60]
[390988412,1760273697176,500.0,0.00030257,60]
[390988413,1760273697398,500.0,0.00030257,60]
[390988414,1760273697701,500.0,0.00030257,60]
[390988415,1760273697834,5000.0,0.00017,10]
[390988416,1760273697867,500.0,0.00030257,60]
[390988417,1760273698091,260.78,0.00030257,60]
[390988418,1760273700771,500.0,0.00030257,60]
[390988419,1760273705148,500.0,0.00030257,60]
[390988420,1760273705448,500.0,0.00030257,60]
[390988421,1760273705686,322.14,0.00030257,60]
[390988422,1760273716929,500.0,0.00030257,60]
[390988423,1760273717159,180.61,0.00030257,60]
[390988424,1760273717821,500.0,0.00030257,60]
[390988425,1760273718167,500.0,0.00030257,60]
[390988426,1760273718330,500.0,0.00030257,60]
[390988427,1760273718563,345.22247393,0.00030257,60]
[390988428,1760273720650,5000.0,0.00017,10]
[390988429,1760273721084,500.0,0.00030257,60]
[390988430,1760273728500,644.11,0.00030257,60]
[390988431,1760273730367,500.0,0.00030257,60]
[390988432,1760273730641,447.3,0.00030257,60]
[390988433,1760273737611,500.0,0.00030257,60]
[390988434,1760273738209,500.0,0.00030257,60]
[390988435,1760273738471,500.0,0.00030257,60]
[390988436,1760273738747,500.0,0.00030257,60]
[390988437,1760273739074,500.0,0.00030257,60]
[390988438,1760273739361,500.0,0.00030257,60]
[390988439,1760273739712,500.0,0.00030257,60]
[390988440,1760273739955,500.0,0.00030257,60]
[390988441,1760273740225,500.0,0.00030257,60]
[390988442,1760273740462,500.0,0.00030257,60]
[390988443,1760273740709,500.0,0.00030257,60]
[390988444,1760273740955,500.0,0.00030257,60]
[390988445,1760273741202,255.96,0.00030257,60]
[390988446,1760273744063,5000.0,0.00017,10]
[390988447,1760273744397,500.0,0.00030257,60]
[390988448,1760273744659,500.0,0.00030257,60]
[390988449,1760273744908,426.14,0.00030257,60]
[390988450,1760273745120,568.67,0.00030257,60]
[390988451,1760273754307,500.0,0.00030257,60]
[390988452,1760273754533,500.0,0.00030257,60]
[390988453,1760273754796,500.0,0.00030257,60]
[390988454,1760273755020,500.0,0.00030257,60]
[390988455,1760273755269,500.0,0.00030257,60]
[390988457,1760273755488,564.34,0.00030257,60]
[390988458,1760273756218,858.0,0.00027397,120]
[390988459,1760273765417,540.24,0.00030257,60]
[390988460,1760273765911,500.0,0.00030257,60]
[390988461,1760273766139,500.0,0.00030257,60]
[390988462,1760273766396,450.06,0.00030257,60]
[390988463,1760273766734,5000.0,0.00017,10]
[390988464,1760273771198,500.0,0.00030257,60]
[390988465,1760273771263,500.0,0.00030257,60]
[390988466,1760273771420,635.66,0.00030257,60]
[390988467,1760273772952,500.0,0.00030257,60]
[390988468,1760273773182,500.0,0.00030257,60]
[390988469,1760273773419,500.0,0.00030257,60]
[390988470,1760273773656,194.54,0.00030257,60]
[390988471,1760273775496,500.0,0.00030257,60]
[390988472,1760273775735,302.08,0.00030257,60]
[390988473,1760273776248,500.0,0.00030257,60]
[390988474,1760273776925,500.0,0.00030257,60]
[390988475,1760273781052,500.0,0.00030257,60]
[390988476,1760273781288,500.0,0.00030257,60]
[390988477,1760273781516,500.0,0.00030257,60]
[390988478,1760273781774,500.0,0.00030257,60]
[390988479,1760273781999,500.0,0.00030257,60]
[390988480,1760273782393,500.0,0.00030257,60]
[390988481,1760273782651,500.0,0.00030257,60]
[390988482,1760273782955,500.0,0.00030257,60]
[390988483,1760273783209,500.0,0.00030257,60]
[390988484,1760273783803,500.0,0.00030257,60]
[390988485,1760273784030,500.0,0.00030257,60]
[390988486,1760273784071,500.0,0.00030257,60]
[390988487,1760273784316,500.0,0.00030257,60]
[390988488,1760273784591,500.0,0.00030257,60]
[390988489,1760273784828,641.8376576,0.00030257,60]
[390988490,1760273788119,300.45976289,0.00030257,60]
[390988491,1760273790052,5000.0,0.00017,10]
[390988492,1760273793947,500.0,0.00030257,60]
[390988493,1760273798973,604.21,0.00030257,60]
[390988494,1760273807915,500.0,0.00030257,60]
[390988495,1760273808155,500.0,0.00030257,60]
[390988496,1760273808384,500.0,0.00030257,60]
[390988497,1760273808615,345.07,0.00030257,60]
[390988498,1760273813008,5000.0,0.000157,2]
[390988502,1760273835683,5000.0,0.000157,2]
[390988503,1760273846972,500.0,0.00030257,60]
[390988504,1760273847252,500.0,0.00030257,60]
[390988505,1760273849363,500.0,0.00030257,60]
[390988506,1760273849657,500.0,0.00030257,60]
[390988507,1760273849897,500.0,0.00030257,60]
[390988508,1760273850138,253.06,0.00030257,60]
[390988509,1760273854774,500.0,0.00030257,60]
[390988510,1760273855042,500.0,0.00030257,60]
[390988511,1760273855289,500.0,0.00030257,60]
[390988512,1760273855560,216.21817869,0.00030257,60]
[390988513,1760273858256,5000.0,0.00017,10]
[390988514,1760273859939,500.0,0.00030257,60]
[390988515,1760273862388,500.0,0.00030257,60]
[390988516,1760273862548,425.79,0.00030257,60]
[390988517,1760273864395,500.0,0.00030257,60]
[390988518,1760273866503,500.0,0.00030257,60]
[390988519,1760273880940,5000.0,0.00017,10]
[390988520,1760273887700,500.0,0.00030257,60]
[390988521,1760273887928,500.0,0.00030257,60]
[390988522,1760273893832,361.9,0.00030257,60]
[390988524,1760273904132,5000.0,0.00017,10]
[390988525,1760273926951,5000.0,0.00017,10]
[390988526,1760273950088,5000.0,0.00017,10]
[390988527,1760273955209,500.0,0.00030301,60]
[390988528,1760273955521,500.0,0.00030301,60]
[390988529,1760273973010,5000.0,0.00017,10]
[390988530,1760273976968,150.0,0.00014971,7]
[390988531,1760273981119,2909.7961756,0.00014871,2]
[390988532,1760273992466,500.0,0.00030301,60]
[390988533,1760273992690,500.0,0.00030301,60]
[390988534,1760273992907,500.0,0.00030301,60]
[390988535,1760273993206,500.0,0.00030301,60]
[390988536,1760273993435,215.12,0.00030301,60]
[390988537,1760273995870,5000.0,0.00017,10]
[390988539,1760274019659,5000.0,0.000157,2]
[390988540,1760274020458,500.0,0.00030301,60]
[390988541,1760274027960,500.0,0.00030301,60]
[390988542,1760274028212,500.0,0.00030301,60]
[390988543,1760274030107,500.0,0.00030301,60]
[390988544,1760274030502,500.0,0.00030301,60]
[390988545,1760274030757,436.72,0.00030301,60]
[390988546,1760274042872,5000.0,0.000157,2]
[390988547,1760274065919,5000.0,0.000157,2]
[390988548,1760274084051,500.0,0.00030301,60]
[390988549,1760274084109,366.12,0.00030301,60]
[390988551,1760274089539,5000.0,0.000157,2]
[390988552,1760274109667,500.0,0.00030301,60]
[390988553,1760274113552,168.951526,7.434e-05,2]
[390988554,1760274113989,168.951526,0.00014869,2]
[390988555,1760274114085,5000.0,0.000157,2]
[390988556,1760274128209,166.56543061,0.00015502,2]
[390988557,1760274131911,176.72792493,0.00015502,2]
[390988558,1760274137313,5000.0,0.000157,2]
[390988559,1760274159999,5000.0,0.000157,2]
[390988560,1760274160201,2916.656255,0.00014872,2]
[390988561,1760274183620,5000.0,0.000157,2]
[390988562,1760274199443,500.0,0.00030301,60]
[390988563,1760274201240,500.0,0.00030298,60]
[390988566,1760274208368,5000.0,0.000157,2]
[390988570,1760274227926,500.0,0.00030298,60]
[390988571,1760274231745,5000.0,0.000157,2]
[390988572,1760274245462,176.72792493,0.00015495,2]
[390988573,1760274254383,5000.0,0.000157,2]
[390988574,1760274277274,5000.0,0.000157,2]
[390988575,1760274300511,5000.0,0.000157,2]
[390988576,1760274305202,250.0873804,0.00030298,60]
[390988577,1760274314480,500.0,0.00030298,60]
[390988579,1760274323352,5000.0,0.000157,2]
[390988580,1760274346283,5000.0,0.000157,2]
[390988583,1760274370074,5000.0,0.000157,2]
[390988585,1760274392895,5000.0,0.000157,2]
[390988586,1760274398305,-300.0,0.0001586,2]
[390988587,1760274398325,-300.0,0.00015861,2]
[390988588,1760274398346,-300.0,0.00015861,2]
[390988589,1760274398365,-300.0,0.00015861,2]
[390988590,1760274398385,-300.0,0.00015861,2]
[390988591,1760274398406,-1200.0,0.00015861,2]
[390988592,1760274398426,-303.009777,0.00015861,2]
[390988593,1760274415681,5000.0,0.000157,2]
[390988596,1760274438388,5000.0,0.000157,2]
[390988597,1760274461834,5000.0,0.000157,2]
[390988598,1760274485584,5000.0,0.000157,2]
[390988599,1760274508290,5000.0,0.000157,2]
[390988602,1760274531201,5000.0,0.000157,2]
[390988604,1760274554427,5000.0,0.000157,2]
[390988605,1760274578163,5000.0,0.000157,2]
[390988606,1760274578226,500.0,0.00030295,60]
[390988607,1760274600960,5000.0,0.000157,2]
[390988608,1760274602287,500.0,0.00030295,60]
[390988609,1760274602558,500.0,0.00030295,60]
[390988610,1760274602818,164.76,0.00030295,60]
[390988611,1760274624202,5000.0,0.00017,10]
[390988623,1760274632556,-233.71177174,0.00015808,2]
[390988624,1760274632566,-300.0,0.00015859,2]
[390988625,1760274632576,-300.0,0.00015859,2]
[390988626,1760274632585,-413.80840153,0.00015859,2]
[390988627,1760274632596,-664.38535368,0.00015859,2]
[390988631,1760274632910,-121.80624479,0.00015859,2]
[390988632,1760274632919,-263.0,0.00015859,2]
[390988633,1760274632929,-300.0,0.00015859,2]
[390988634,1760274632938,-300.0,0.00015859,2]
[390988635,1760274632948,-304.20873096,0.0001586,2]
[390988637,1760274638574,-500.0,0.00015859,2]
[390988638,1760274638583,-93.2364271,0.00015859,2]
[390988639,1760274638595,-315.69405861,0.00015859,2]
[390988640,1760274638604,-445.29973138,0.00015859,2]
[390988641,1760274638683,-85.02473612,0.00015859,2]
[390988642,1760274638693,-500.0,0.00015859,2]
[390988643,1760274638702,-500.0,0.00015859,2]
[390988644,1760274638713,-500.0,0.00015859,2]
[390988645,1760274638724,-500.0,0.00015859,2]
[390988646,1760274638733,-500.0,0.00015859,2]
[390988647,1760274638743,-500.0,0.00015859,2]
[390988648,1760274638753,-288.84556707,0.00015859,2]
[390988649,1760274638762,-500.0,0.00015859,2]
[390988650,1760274638772,-500.0,0.00015859,2]
[390988651,1760274638782,-500.0,0.00015859,2]
[390988652,1760274638792,-500.0,0.00015859,2]
[390988653,1760274638802,-500.0,0.00015859,2]
[390988654,1760274638812,-500.0,0.00015859,2]
[390988655,1760274638821,-500.0,0.00015859,2]
[390988656,1760274638831,-500.0,0.00015859,2]
[390988657,1760274638841,-500.0,0.00015859,2]
[390988658,1760274638850,-177.70536314,0.00015859,2]
[390988659,1760274638864,-500.0,0.00015859,2]
[390988660,1760274638874,-500.0,0.00015859,2]
[390988661,1760274638883,-500.0,0.00015859,2]
[390988662,1760274638892,-500.0,0.00015859,2]
[390988663,1760274638902,-500.0,0.00015859,2]
[390988664,1760274638912,-500.0,0.00015859,2]
[390988665,1760274638922,-500.0,0.00015859,2]
[390988666,1760274638932,-500.0,0.00015859,2]
[390988667,1760274639095,-500.0,0.00015859,2]
[390988668,1760274639105,-500.0,0.00015859,2]
[390988669,1760274639115,-500.0,0.00015859,2]
[390988670,1760274639124,-500.0,0.00015859,2]
[390988671,1760274639134,-500.0,0.00015859,2]
[390988672,1760274639144,-500.0,0.00015859,2]
[390988673,1760274639154,-500.0,0.00015859,2]
[390988674,1760274639164,-500.0,0.00015859,2]
[390988675,1760274639173,-500.0,0.00015859,2]
[390988676,1760274639182,-500.0,0.00015859,2]
[390988677,1760274639191,-500.0,0.00015859,2]
[390988678,1760274639201,-500.0,0.00015859,2]
[390988679,1760274639211,-500.0,0.00015859,2]
[390988680,1760274639221,-500.0,0.00015859,2]
[390988681,1760274639231,-500.0,0.00015859,2]
[390988682,1760274639240,-500.0,0.00015859,2]
[390988683,1760274639249,-500.0,0.00015859,2]
[390988684,1760274639258,-500.0,0.00015859,2]
[390988685,1760274639267,-500.0,0.00015859,2]
[390988686,1760274639277,-500.0,0.00015859,2]
[390988687,1760274639286,-500.0,0.00015859,2]
[390988688,1760274639295,-500.0,0.00015859,2]
[390988689,1760274639303,-500.0,0.00015859,2]
[390988690,1760274639312,-500.0,0.00015859,2]
[390988691,1760274639321,-500.0,0.00015859,2]
[390988692,1760274639330,-500.0,0.00015859,2]
[390988693,1760274639339,-286.6431501,0.00015859,2]
[390988694,1760274639348,-895.79126904,0.0001586,2]
[390988695,1760274639358,-261.7912904,0.00015862,2]
[390988696,1760274639367,-151.0,0.00015862,2]
[390988697,1760274639376,-152.68237417,0.00015862,2]
[390988698,1760274639385,-452.0,0.00015862,2]
[390988699,1760274639394,-151.0,0.00015862,2]
[390988700,1760274639403,-151.41770202,0.00015862,2]
[390988701,1760274639412,-151.0,0.00015862,2]
[390988702,1760274639421,-151.0,0.00015863,2]
[390988703,1760274639430,-154.37356518,0.00015863,2]
[390988704,1760274639439,-151.0,0.00015863,2]
[390988705,1760274639448,-151.0,0.00015864,2]
[390988706,1760274639457,-151.0,0.00015864,2]
[390988707,1760274639465,-151.0,0.00015864,2]
[390988708,1760274639474,-151.0,0.00015864,2]
[390988709,1760274639484,-151.0,0.00015864,2]
[390988710,1760274639492,-151.0,0.00015864,2]
[390988711,1760274639501,-217.80904035,0.00015865,2]
[390988712,1760274639515,-500.0,0.00015871,2]
[390988713,1760274639524,-53303.15033692,0.00015872,2]
[390988715,1760274640629,-3555.67074178,0.00015872,2]
[390988716,1760274640639,-151.0,0.00015917,2]
[390988717,1760274640648,-452.0,0.00015917,2]
[390988718,1760274640657,-151.0,0.00015917,2]
[390988719,1760274640667,-151.0,0.00015917,2]
[390988720,1760274640676,-153.52641508,0.00015918,2]
[390988721,1760274640684,-205.4798076,0.00015919,2]
[390988722,1760274640695,-151.0,0.00015919,2]
[390988723,1760274640705,-151.0,0.00015919,2]
[390988724,1760274640714,-1455.58177617,0.0001593,2]
[390988725,1760274640724,-452.0,0.00015972,2]
[390988726,1760274640734,-51.31867568,0.00015972,2]
[390988728,1760274643488,-99.68132432,0.00015972,2]
[390988729,1760274643497,-198.0,0.00015972,2]
[390988730,1760274643507,-198.0,0.00015974,2]
[390988731,1760274643519,-198.0,0.00015974,2]
[390988732,1760274643529,-452.0,0.00016026,2]
[390988733,1760274643538,-151.0,0.00016026,2]
[390988734,1760274643548,-452.0,0.00016081,2]
[390988735,1760274643558,-246.63242529,0.00016081,2]
[390988736,1760274643568,-1000.0,0.000161,2]
[390988737,1760274643578,-130.0567901,0.00016136,2]
[390988738,1760274643594,-321.9432099,0.00016136,2]
[390988739,1760274643604,-500.0,0.00016145,2]
[390988740,1760274643614,-452.0,0.00016191,2]
[390988741,1760274643624,-407.79,0.00016203,2]
[390988742,1760274643633,-452.0,0.00016246,2]
[390988743,1760274643643,-452.0,0.000163,2]
[390988744,1760274643653,-999.9508647,0.00016304,2]
[390988745,1760274643663,-800.0,0.0001632,2]
[390988746,1760274643672,-989.76339394,0.00016335,2]
[390988747,1760274643683,-415.07431893,0.00016335,2]
[390988748,1760274643694,-4334.73348944,0.00016335,2]
[390988749,1760274643959,-333.667753,0.00016335,2]
[390988750,1760274646567,-727.79088809,0.00016143,2]
[390988751,1760274646577,-2452.99690561,0.00016335,2]
[390988752,1760274646586,-452.0,0.00016355,2]
[390988753,1760274646596,-452.0,0.0001641,2]
[390988754,1760274646606,-500.0,0.00016419,2]
[390988755,1760274646615,-568.44086726,0.00016437,2]
[390988756,1760274646625,-500.0,0.00016437,2]
[390988757,1760274646634,-500.0,0.00016437,2]
[390988758,1760274646644,-366.86152072,0.00016437,2]
[390988759,1760274646654,-1000.0,0.00016438,2]
[390988760,1760274646664,-500.0,0.00016438,2]
[390988761,1760274646673,-500.0,0.00016438,2]
[390988762,1760274646683,-500.0,0.00016438,2]
[390988763,1760274646692,-500.0,0.00016438,2]
[390988764,1760274646701,-500.0,0.00016438,2]
[390988765,1760274646711,-500.0,0.00016438,2]
[390988766,1760274646721,-500.0,0.00016438,2]
[390988767,1760274646731,-500.0,0.00016438,2]
[390988768,1760274646740,-500.0,0.00016438,2]
[390988769,1760274646750,-201.26051555,0.00016438,2]
[390988771,1760274646759,-500.0,0.00016438,2]
[390988772,1760274646768,-500.0,0.00016438,2]
[390988774,1760274646778,-301.05998396,0.00016462,2]
[390988776,1760274646787,-452.0,0.00016465,2]
[390988778,1760274646797,-452.0,0.0001652,2]
[390988780,1760274646806,-452.0,0.00016574,2]
[390988782,1760274646817,-452.0,0.00016629,2]
[390988783,1760274646826,-362.7502296,0.00016652,5]
[390988784,1760274646835,-2010.14150105,0.00016652,5]
[390988785,1760274646845,-452.0,0.00016684,2]
[390988786,1760274646854,-500.0,0.00016693,2]
[390988787,1760274646863,-452.0,0.00016739,2]
[390988788,1760274646871,-452.0,0.00016794,2]
[390988789,1760274646882,-452.0,0.00016848,2]
[390988790,1760274646891,-452.0,0.00016903,2]
[390988791,1760274646902,-452.0,0.00016958,2]
[390988792,1760274646911,-500.0,0.00016967,2]
[390988793,1760274646920,-500.0,0.00016995,2]
[390988794,1760274646931,-162.0,0.00017,2]
[390988795,1760274646940,-162.0,0.00017,2]
[390988796,1760274646949,-162.0,0.00017,2]
[390988797,1760274646959,-152.15221149,0.00017,2]
[390988798,1760274646968,-165.0,0.00017,2]
[390988799,1760274646979,-166.0,0.00017,2]
[390988800,1760274646988,-165.0,0.00017,2]
[390988801,1760274646998,-166.0,0.00017,2]
[390988802,1760274647007,-166.0,0.00017,2]
[390988803,1760274647016,-166.0,0.00017,2]
[390988804,1760274647025,-330.0,0.00017,2]
[390988805,1760274647034,-166.0,0.00017,2]
[390988806,1760274647043,-330.0,0.00017,2]
[390988807,1760274647051,-166.0,0.00017,2]
[390988808,1760274647061,-178.10549809,0.00017,2]
[390988809,1760274647070,-452.0,0.00017013,2]
[390988810,1760274647079,-340.32867752,0.00017062,2]
[390988811,1760274647088,-452.0,0.00017067,2]
[390988812,1760274647097,-1000.0,0.000171,3]
[390988813,1760274647107,-469.87936089,0.00017122,2]
[390988814,1760274647116,-507.35,0.00017303,3]
[390988815,1760274647125,-676.43,0.00017312,3]
[390988816,1760274647134,-5081.79,0.00017313,3]
[390988817,1760274647143,-2705.73,0.00017313,3]
[390988818,1760274647151,-1352.87,0.00017313,3]
[390988819,1760274647160,-169.11,0.00017313,3]
[390988820,1760274647169,-402.2877588,0.00017313,3]